Cogmind - Beta 12 @@@ ROGUE MODE // 2023.03.21 @ 22:32:03 Player: Exp. Geonium Core Result: Destroyed by G-47 Trooper with Particle Gun Performance ------------- Evolutions (0) 0 Regions Visited (2) 400 Robots Destroyed (15) 75 Value Destroyed (153) 153 Prototype IDs (0) 0 Alien Tech Used (0) 0 Bonus (0) 0 TOTAL SCORE: 628 Bonus ------- None Cogmind --------- Core Integrity 0/250 Matter 284/300 Energy 98/100 System Corruption 0% Temperature Cool (9) Movement Treading (160) Location -10/Mines Parts ------- > --- POWER (1) -------- (None) > --- PROPULSION (2) --- Light Treads Light Treads > --- UTILITY (2) ------ (None) > --- WEAPON (2) ------- Light Assault Rifle Light Assault Rifle > --- INVENTORY (5) ---- Light Ion Engine Wheel Wheel Structural Scanner Light Assault Rifle Peak State ------------ > --- POWER ------------ Ion Engine > --- PROPULSION ------- Aluminum Leg Aluminum Leg > --- UTILITY ---------- Large Storage Unit Light Armor Plating > --- WEAPON ----------- Medium Laser Grenade Launcher > --- INVENTORY -------- Light Ion Engine Light Treads Light Treads Light Treads Wheel Wheel Structural Scanner Light Assault Rifle Light Assault Rifle Light Assault Rifle [Rating: 8] Favorites ----------- Power Ion Engine Engine Ion Engine Propulsion Aluminum Leg Treads Light Treads Leg Aluminum Leg Utility Large Storage Unit Storage Large Storage Unit Protection Light Armor Plating Weapon Medium Laser Energy Gun Medium Laser Ballistic Gun Light Assault Rifle Launcher Grenade Launcher Build | -11 -10 -10 ------- Run | Jun Mat Min Slots Evolved . | . . . Power . | . . . Propulsion . | . . . Utility . | . . . Weapon . | . . . Parts Attached 9 | 2 3 4 Power . | . . . Engine . | . . . Core . | . . . Reactor . | . . . Propulsion 4 | 2 . 2 Treads 3 | 1 . 2 Leg 1 | 1 . . Wheel . | . . . Hover . | . . . Flight . | . . . Utility 2 | . 2 . Device . | . . . Storage 1 | . 1 . Processor . | . . . Hackware . | . . . Protection 1 | . 1 . Artifact . | . . . Weapon 3 | . 1 2 Energy Gun . | . . . Energy Cannon . | . . . Ballistic Gun 2 | . . 2 Ballistic Cannon . | . . . Launcher 1 | . 1 . Special Weapon . | . . . Impact Weapon . | . . . Slashing Weapon . | . . . Piercing Weapon . | . . . Special Melee Weapon . | . . . Unidentified Prototypes . | . . . Parts Lost 6 | . 1 5 Power 1 | . . 1 Propulsion 2 | . . 2 Utility 1 | . . 1 Weapon 2 | . 1 1 Highest Loss Streak 4 | . 1 4 To Critical Strikes . | . . . Average Slot Usage (%) 87 | . 91 84 Engine 11 | . 14 9 Treads 4 | . . 8 Leg 23 | . 28 19 Storage 11 | . 14 9 Protection 8 | . 6 9 Energy Gun 12 | . 14 10 Ballistic Gun 10 | . 4 15 Launcher 4 | . 9 . Naked Turns . | . . . Heaviest Build 35 | 13 35 31 Greatest Support 20 | 20 20 20 Greatest Overweight (x) 2 | . 1 2 Average Overweight (x) . | . . . Largest Inventory Capacity 15 | 8 15 15 Average Capacity 12 | 8 12 11 Most Carried 10 | 6 10 10 Average Carried 8 | 6 8 7 Final Capacity 15 | 8 15 5 Final Carried 10 | 6 10 5 Class Distribution -------------------- 100% | Mutant Dominant Class ---------------- Mutant | -10/Materials Mutant | -10/Mines Resources | -11 -10 -10 ----------- Run | Jun Mat Min Matter Collected 408 | 200 123 85 Remotely . | . . . Salvage Created 232 | . 58 174 Parts 21 | . 11 10 Haulers Intercepted . | . . . Recyclers Shooed . | . . . Parts Field Recycled . | . . . Retrieved Matter . | . . . Parts Self-Destructed . | . . . Prevented . | . . . Kills | -11 -10 -10 ------- Run | Jun Mat Min Combat Hostiles Destroyed 16 | . 6 10 Guns 10 | . . 10 AOE 6 | . 6 . Classes Destroyed 4 | . 3 1 Tunneler 1 | . 1 . Operator 1 | . 1 . Swarmer 13 | . 6 7 Assembled 3 | . . 3 Best Kill Streak 3 | . 3 3 Combat Bots Only 3 | . 3 3 Max Kills in Single Turn 3 | . 3 1 Gunslinging . | . . . Exploded 3 | . 3 . Melee . | . . . Uniques/NPCs Destroyed . | . . . Combat | -11 -10 -10 -------- Run | Jun Mat Min Damage Taken 1088 | . 195 893 Core 260 | . 22 238 Absorbed by Shields . | . . . Core Remaining (%) 100 | 100 . . Volleys Fired 59 | . 10 49 Largest 2 | . 2 2 Hottest 70 | . 70 70 Shots Fired 108 | . 13 95 Gun 101 | . 6 95 Cannon . | . . . Launcher 7 | . 7 . Special . | . . . Kinetic 69 | . 3 66 Thermal 32 | . 3 29 Explosive 7 | . 7 . Electromagnetic . | . . . Robot Hit Streak 7 | . 7 6 Robot Miss Streak 3 | . 1 3 Penetration Max . | . . . Secondary Targets 2 | . . 2 Max Gunslinging Chain 1 | . . 1 Shots Hit Robots 62 | . 7 55 Core Hits 25 | . 9 16 Critical Kills . | . . . Critical Parts Destroyed 1 | . . 1 Critical Strikes 3 | . . 3 Burn 2 | . . 2 Destroy 1 | . . 1 Melee Attacks . | . . . Impact . | . . . Slashing . | . . . Piercing . | . . . Sneak Attacks . | . . . Combat Hostiles . | . . . Follow-up Attacks . | . . . Damage Inflicted 1034 | . 494 540 Guns 569 | . 39 530 Cannons . | . . . Explosions 455 | . 455 . Melee . | . . . Ramming 10 | . . 10 Kinetic 341 | . 13 328 Thermal 228 | . 26 202 Explosive 455 | . 455 . Electromagnetic . | . . . Impact . | . . . Slashing . | . . . Piercing . | . . . Highest Corruption . | . . . Average Corruption . | . . . Corruption Purged . | . . . Corruption Blocked . | . . . Overload Shots . | . . . Overflow Damage 26 | . 26 . Projectiles . | . . . Explosions 26 | . 26 . Melee . | . . . Knockbacks . | . . . Impact . | . . . Kinetic . | . . . Secondary . | . . . Self-Inflicted Damage 72 | . 72 . Shots 4 | . 4 . Rammed . | . . . Targets Rammed 3 | . . 3 Kicked 3 | . . 3 Crushed . | . . . Highest Temperature 243 | . 40 243 Average Temperature 91 | . 19 97 Received Heat Transfer 122 | . 30 92 Siege Activations . | . . . Robots Corrupted . | . . . Combat Hostiles . | . . . Parts Fried . | . . . Impact Corruptions . | . . . Robots Melted . | . . . Combat Hostiles . | . . . Parts Melted 1 | . . 1 Heat Transferred 814 | . 74 740 Parts Sabotaged . | . . . Parts Stolen . | . . . Parts Stripped . | . . . Power Chain Reactions . | . . . Missiles Intercepted . | . . . Alert | -11 -10 -10 ------- Run | Jun Mat Min Peak Influence 269 | . 269 131 Initial 31 | . . 31 Average 109 | . 134 92 Maximum Alert Level 1 | . 1 . Low Security (%) 90 | 100 77 100 Level 1 9 | . 22 . Level 2 . | . . . Level 3 . | . . . Level 4 . | . . . Level 5 . | . . . High Security . | . . . Max Security . | . . . Squads Dispatched . | . . . Investigation . | . . . Extermination . | . . . Reinforcement . | . . . Assault . | . . . Garrison . | . . . Intercept . | . . . Searches Triggered . | . . . Construction Impeded . | . . . Haulers Reinforced . | . . . Active Scanning Responses . | . . . Cargo Convoy Interrupts . | . . . Stealth | -11 -10 -10 --------- Run | Jun Mat Min Distress Signals 1 | . . 1 Communications Jammed . | . . . Distress Signals . | . . . Times Spotted 50 | . 15 35 Peak Tracking Total 19 | . 4 19 Tactical Retreats 4 | . 1 3 Traps | -11 -10 -10 ------- Run | Jun Mat Min Traps Triggered . | . . . Indirectly . | . . . Trap Hack Attempts . | . . . Triggered . | . . . Disarmed . | . . . Reprogrammed . | . . . Reused . | . . . Traps Extracted . | . . . Installed . | . . . Triggered 1 | . . 1 Machines | -11 -10 -10 ---------- Run | Jun Mat Min Machines Disabled . | . . . Max in Single Turn . | . . . Machines Repaired . | . . . Machines Sabotaged . | . . . Overloaded Fab Kills . | . . . Hacking | -11 -10 -10 --------- Run | Jun Mat Min Machines Accessed 4 | . 4 . Terminals 3 | . 3 . Fabricators . | . . . Repair Stations . | . . . Recycling Units 1 | . 1 . Scanalyzers . | . . . Garrison Access . | . . . Total Hacks 8 | . 8 . Successful 4 | . 4 . Failed 4 | . 4 . Catastrophic 1 | . 1 . Database Lockouts . | . . . Manual 4 | . 4 . Terminals 5 | . 5 . Fabricators . | . . . Repair Stations . | . . . Recycling Units 3 | . 3 . Scanalyzers . | . . . Garrison Access . | . . . Terminal Hacks 2 | . 2 . Robot Schematic 1 | . 1 . Branch Access Points 1 | . 1 . Fabricator Hacks . | . . . Repair Station Hacks . | . . . Recycling Unit Hacks 2 | . 2 . Process 1 | . 1 . Report Inventory 1 | . 1 . Scanalyzer . | . . . Garrison Access Hacks . | . . . Unauthorized Hacks . | . . . Terminals . | . . . Fabricators . | . . . Repair Stations . | . . . Recycling Units . | . . . Scanalyzers . | . . . Garrison Access . | . . . Data Cores Recovered 1 | . 1 . Used 1 | . 1 . Hacking Detections 3 | . 3 . Full Trace Events 1 | . 1 . Feedback Events . | . . . Feedback Blocked . | . . . Robot Schematics Acquired 1 | . 1 . Robots Built . | . . . Authchips . | . . . Time . | . . . Total Robot Build Rating . | . . . Part Schematics Acquired . | . . . Parts Built . | . . . Authchips . | . . . Time . | . . . Total Part Build Rating . | . . . Parts Repaired . | . . . Time . | . . . Parts Recycled . | . . . Recycled Matter 133 | . 133 . Retrieved Matter . | . . . Retrieved Components . | . . . Parts Scanalyzed . | . . . Part Schematics Acquired . | . . . Parts Damaged . | . . . Bothacking | -11 -10 -10 ------------ Run | Jun Mat Min Used RIF Installer . | . . . Robots Hacked . | . . . Non-combat . | . . . Combat . | . . . Robot Hacks Applied . | . . . Relay Couplers Released . | . . . Fabnet Peak Effective % . | . . . Robots Rewired . | . . . Allies Hacked . | . . . Hacks Repelled . | . . . Allies | -11 -10 -10 -------- Run | Jun Mat Min Total Allies 2 | . . 2 Largest Group 2 | . . 2 Highest-Rated Group 45 | . . 45 Highest-Rated Ally 31 | . . 31 Total Orders . | . . . Ally Attacks 2 | . . 2 Total Damage 20 | . . 20 Kills 1 | . . 1 Allies Corrupted . | . . . Allies Melted . | . . . Intel | -11 -10 -10 ------- Run | Jun Mat Min Robot Analysis Total . | . . . Derelict Logs Recovered 2 | . . 2 Drone Launches . | . . . Drone Recoveries . | . . . Exploration | -11 -10 -10 ------------- Run | Jun Mat Min Turns Passed 1061 | 11 458 592 Spaces Moved 681 | 7 269 405 Core 231 | . . 231 Treads . | . . . Legs 450 | 7 269 174 Wheels . | . . . Hover . | . . . Flight . | . . . Fastest Speed 50 | 120 120 50 Average Speed 129 | 120 157 110 Slowest Speed 260 | 120 190 260 Overloaded Moves . | . . . Propulsion Burnouts . | . . . Robots Hopped . | . . . Cave-ins Triggered . | . . . Exploration Rate (%) 42 | 2 58 66 Regions Visited 2 Branch Regions 1 Pre-discovered Areas 2 | . . 2 Known Exits Taken 1 | . 1 . Unknown Exits Taken 1 | 1 . . Scrap Searched 1 | . . 1 Spaces Dug 16 | . 16 . Terrain Destroyed 55 | . 55 . Melee . | . . . Projectile . | . . . AOE 55 | . 55 . Terrain Rammed . | . . . Walls Destroyed . | . . . Machines Disabled . | . . . Actions | -11 -10 -10 --------- Run | Jun Mat Min Total 765 | 8 289 468 Wait 9 | . 3 6 Move 679 | 6 268 405 Hop . | . . . Pick Up 4 | . 4 . Fast Attach 3 | . 2 1 Attach 3 | . . 3 Detach . | . . . Swap 3 | 2 1 . Drop 2 | . 1 1 Fire 59 | . 10 49 Melee . | . . . Ram . | . . . Kick 3 | . . 3 Crush . | . . . Escape Stasis . | . . . Rewire . | . . . Trap . | . . . Miscellaneous . | . . . Route ------- -11/Junkyard -10/Materials (discovered 2 exits: [*Mat] / *Min) -10/Mines (discovered 1 exit: [*Mat]) History --------- Turn | Location | Event 1 | -11/Junkyard | Discovered new exit (range 3) 12 | -11/Junkyard | Entered Materials 210 | -10/Materials | Identified exit to Mines 301 | -10/Materials | Build established: Mutant 316 | -10/Materials | Discovered new exit (range 15) 470 | -10/Materials | Entered Mines 512 | -10/Mines | Learned location of Zion (-7) 649 | -10/Mines | Learned location of Storage (-8) 745 | -10/Mines | Assembled infested the area 894 | -10/Mines | Core integrity fell below 50% 911 | -10/Mines | Lost 4 parts (1p2n1u) 916 | -10/Mines | Discovered new exit (range 11) 1053 | -10/Mines | Core integrity fell below 20% 1062 | -10/Mines | Destroyed by G-47 Trooper with Particle Gun Last Messages --------------- 00808_ Acquired 1 matter. 00808_ as-44285 destroyed. 00872_ Lgt. Armor Plating destroyed. 00876_ Ion Engine destroyed. 00877_ Aluminum Leg destroyed. 00882_ Dropped Lrg. Storage Unit. 00895_ A derelict is hurriedly installing traps. 00904_ U-05 Engineer builds a Wall. 00916_ EXIT=FOUND 00929_ S-10 Pest destroyed. 00929_ Switching to secondary target: S-10 Pest. 00932_ Med. Laser destroyed. 00932_ S-10 Pest destroyed. 00939_ Acquired Lgt. Assault Rifle. 00942_ Acquired 20 matter. 01017_ S-10 Pest destroyed. 01037_ Acquired 13 matter. 01039_ Acquired 17 matter. 01048_ K-01 Serf sends out distress signal. 01058_ Critical hit (Burn: +37). Map ----- +----------------------------------------------------+ | | | | | | | | | | | | | | | | | | | | | ?????????????????????????????????????????????????? | | ?????????????????????????????????????????????????? | | ?????????????????????????????????????????????????? | | ????????????????????????????????????????????????## | | ???????????????????????????????????????????######T | | ???????????????????????????????????????????# | | ???????????????????????????????????????????# | | ??????????????????????????##???????????????# | | ?????????????????????????? #???????????????# | | ##???????????????????????? #???????????????# | | ##??????#####???????????? ##??????????????##### # | | #?????## ##?????????## # ??????????????????# # | | #?????# #?????????# ??????????????###### # | | ###???# ##????????# ???????????????# # | | ##???# ###??????#g#???????????????# ### ## | | # #???## =%########@#???????????????????# #? | | # #????#### * #???????????????????# #? | | ## ##???????# =##############????????????????# #? | | #####????????# #?????????? ????????????????# #? | | #??????????### #?????????X ????????????????# #? | | #??????????# ##???????? ????????????????# #? | | #??????????# ##???????? ????????????????# #? | | #??????????## #???????? ??????????????### #? | | #??????????## #???????? ??????????????# #? | | #??????##### ##???????? ??????????????# ###? | | ##???### ##????????? #??????????????# #??? | | ##??## ##??????????# #??????????????# #??? | | ##??# #???????????# #???????????#### ##?? | | #???# ##???????????# #???????????# #?? | | #???# #??????####### #???????????# """#?? | | ##### ## ##??????# # ###?????????# """#?? | | ## ######???????# #?????????# """#?? | | #????????????# #?????????# %% #?? | | ############## """## [########### """#?? | | """##=! =%! """#?? | | """## ! ! """#?? | | ############## ###### ##### ## #?? | | #????????????#######????# #???# ## #?? | | ##???????????????????????# #???# ########?? | | ##????????????????????????# #???#%#????????? | +----------------------------------------------------+ Best States ------------- Heat Dissipation 25 Energy Generation 10 Energy Capacity 250 Matter Stores 300 Matter Capacity 300 Sight Range 16 Terrain Scan Density 10 Armor Coverage 150 Evasion (%) 55 Recoil Reduction 2 Item Schematics ----------------- None Robot Schematics ------------------ S-10 Pest | -10/Materials | Hacked Fabricated ------------ Nothing Alien Tech Used ----------------- None Achievements -------------- None Challenges ------------ None Game ------ Seed DefenseFusionPit Manual? 0 Play Time 00:11:14 Cumulative 336.7 hours Start 2023.03.19 @ 18:42:52 End 2023.03.21 @ 22:32:03 Sessions 2 Manual Loads 0 Difficulty Rogue Special Mode None Game No. 391 Rogue 391 Adventurer 0 Explorer 0 Win Type - Total 11 Types 8/0/2/1/0/0/0/0/0 Lore% 79 Gallery% 88 Achievement% 78 Wizard Run 0 Options --------- ASCII 0 Keyboard 0 Movement Numpad Keybinds 0 Fullscreen 1 Font 18/Terminus Map View 76x50 Tactical HUD 1 Map Filters NONE Filters NONE Steam 1 RUN: a3c4011d-a9a6-4a60-9397-d56cf81738c3